bitfinex/quotes_ETHUSD_20250219
["timestamp","ask_amount","ask_price","bid_price","bid_amount"]
[1740000166893,0.6757,2732.1,2731.6,8.0902848]
[1740000167293,0.6757,2732.1,2731.6,8.0903148]
[1740000167820,0.6757,2732.1,2731.7,3.66072]
[1740000171945,4.33597,2732.1,2731.6,4.4295248]
[1740000173215,0.6757,2732.1,2731.6,4.4295248]
[1740000173452,0.6757,2732.1,2731.8,3.66056]
[1740000174352,0.6757,2732.1,2731.7,4.14028128]
[1740000174725,0.6757,2732.1,2731.7,4.14022128]
[1740000175842,0.6757,2732.1,2731.7,0.47956128]
[1740000176049,0.6757,2732.7,2732.3,3.65988]
[1740000176210,0.9457,2732.7,2732.2,3.66003]
[1740000176408,0.9457,2732.7,2732.3,4.025833]
[1740000176613,4.60517,2732.7,2732.1,3.66011]
[1740000176875,4.33517,2732.7,2732.1,3.66011]
[1740000177151,4.33517,2732.7,2732.1,3.66008]
[1740000177315,0.6757,2732.7,2732.2,3.66005]
[1740000177516,4.33508,2732.7,2732.2,3.66005]
[1740000180257,4.33508,2732.7,2732.2,7.32002]
[1740000180417,4.33508,2732.7,2732.2,3.65997]
[1740000180621,3.65953,2732.6,2732.1,3.66018]
[1740000180822,0.6757,2732.7,2732.1,0.732038]
[1740000181115,0.6757,2732.7,2731.7,0.47956128]
[1740000181455,0.6757,2732.7,2732.6,3.65951]
[1740000181838,12.3986532,2733.4,2732.8,3.65916]
[1740000181839,0.6757,2733.3,2732.8,3.65916]
[1740000183064,4.33436,2733.3,2732.7,3.65932]
[1740000184466,4.33436,2733.3,2732.7,4.471005]
[1740000184661,0.6757,2733.4,2732.5,0.7981]
[1740000184856,6.7699632,2733.2,2732.6,3.65942]
[1740000185160,3.7868732,2732.9,2732.3,3.65987]
[1740000185365,7.4460732,2732.9,2732.3,3.65987]
[1740000185863,3.7868732,2732.9,2732.4,3.65967]
[1740000186026,0.6757,2732.8,2731.9,4.45273]
[1740000186364,0.6757,2732.5,2732.0,3.66025]
[1740000186534,0.6757,2732.5,2731.9,4.45273]
[1740000186733,0.6757,2732.5,2732.1,7.32034]
[1740000186933,0.6757,2732.5,2732.2,0.732034]
[1740000187166,0.6757,2732.5,2732.0,3.66023]
[1740000187459,0.6757,2732.5,2732.1,3.66012]
[1740000187665,0.6757,2732.5,2732.2,3.66004]
[1740000187964,0.6757,2732.5,2732.0,3.66032]
[1740000188467,0.6757,2732.5,2731.9,3.66035]
[1740000188666,0.6757,2732.5,2732.1,3.66018]
[1740000189660,0.6757,2732.5,2731.9,3.66035]
[1740000189867,0.6757,2732.5,2732.0,3.66029]
[1740000190162,0.6757,2732.5,2731.9,3.66035]
[1740000190370,0.6757,2732.5,2732.1,3.66017]
[1740000191167,0.6757,2732.5,2732.1,0.732052]
[1740000191355,0.6757,2732.5,2732.1,4.392222]
[1740000191758,0.6757,2732.5,2732.0,3.6603]
[1740000192271,4.33541,2732.5,2732.0,3.6603]
[1740000192653,3.65944,2732.7,2731.6,5.37]
[1740000192654,3.1111732,2732.3,2731.6,5.37]
[1740000192859,0.6757,2732.2,2731.6,5.37]
[1740000193088,0.6757,2732.2,2731.6,3.66077]
[1740000193397,0.6757,2732.2,2731.8,3.66051]
[1740000194078,0.6757,2732.2,2732.1,3.66018]
[1740000194438,0.6757,2732.5,2732.1,3.66009]
[1740000194633,0.6757,2732.5,2732.2,3.66004]
[1740000194829,0.6757,2732.5,2732.1,3.66017]
[1740000196687,0.6757,2732.5,2732.1,4.392142]
[1740000196837,0.6757,2732.7,2732.4,3.65972]
[1740000197037,0.6757,2732.7,2732.3,3.65989]
[1740000197273,0.6757,2732.7,2732.2,3.66005]
[1740000197447,0.6757,2732.7,2732.4,3.65978]
[1740000197667,0.6757,2732.7,2732.5,3.65955]
[1740000197887,0.6757,2732.7,2732.4,3.65978]
[1740000198985,0.6757,2732.7,2732.4,0.731978]
[1740000199290,0.6757,2732.7,2732.3,3.65982]
[1740000199471,0.6757,2732.7,2732.1,3.66015]
[1740000199678,0.6757,2732.7,2732.4,3.65978]
[1740000200609,0.6757,2732.7,2732.5,3.65961]
[1740000200775,0.6757,2732.7,2732.4,3.65978]
[1740000201470,0.6757,2732.7,2732.4,3.65971]
[1740000202104,0.6757,2732.7,2732.5,3.65965]
[1740000203458,0.6757,2732.7,2732.3,3.65989]
[1740000203459,0.6757,2732.7,2732.4,3.65971]
[1740000203788,0.6757,2733.0,2732.7,3.65928]
[1740000203987,0.6757,2733.3,2733.1,3.65884]
[1740000204193,0.6757,2733.3,2733.2,3.65871]
[1740000204367,0.6757,2733.6,2733.2,3.65871]
[1740000204572,0.6757,2733.6,2733.1,3.65884]
[1740000205220,3.65839,2733.5,2732.9,3.65911]
[1740000205517,6.7695632,2733.5,2732.9,7.31812]
[1740000205806,6.7695632,2733.5,2732.9,7.31802]
[1740000205974,6.7695632,2733.5,2733.0,3.6589]
[1740000206179,3.1111732,2733.5,2733.0,0.731791]
[1740000206376,3.1111732,2733.5,2733.0,4.390691]
[1740000206874,3.1111732,2733.5,2733.0,3.6589]
[1740000207500,3.1111732,2733.5,2733.0,3.65887]
[1740000208006,0.6757,2733.6,2733.3,3.65858]
[1740000208172,0.6757,2733.6,2733.2,3.65865]
[1740000208784,0.6757,2733.6,2733.2,3.65864]
[1740000208986,0.6757,2733.6,2733.2,4.466763]
[1740000209185,0.6757,2733.6,2733.1,3.65884]
[1740000209186,7.4450532,2733.6,2733.1,3.65884]
[1740000209587,7.4450532,2733.6,2732.9,3.65903]
[1740000209588,3.65843,2733.5,2732.9,3.65903]
[1740000209816,3.65843,2733.5,2732.7,5.37]
[1740000210122,3.7868732,2733.6,2733.1,3.65877]
[1740000210410,3.7868732,2733.6,2733.2,0.731773]
[1740000210592,3.7868732,2733.6,2733.2,3.65869]
[1740000211176,6.7693532,2733.6,2732.8,3.65913]
[1740000211376,3.65844,2733.4,2732.8,3.65913]
[1740000211599,3.65844,2733.4,2732.9,3.6591]
[1740000212078,0.6757,2733.5,2732.9,4.390947]
[1740000212303,0.6757,2733.5,2733.0,3.65898]
[1740000212607,4.3341,2733.5,2732.9,3.6591]
[1740000212911,4.3341,2733.5,2733.0,3.65897]
[1740000213314,0.6757,2733.1,2732.4,6.10196]
[1740000213478,4.33461,2733.1,2732.5,3.65958]
[1740000213983,0.6757,2733.1,2732.6,3.65943]
[1740000217515,0.6757,2733.1,2732.6,7.31887]
[1740000217714,0.6757,2733.1,2732.6,3.65943]
[1740000218508,0.6757,2733.1,2732.7,3.65931]
[1740000218712,0.6757,2733.1,2732.8,3.65914]
[1740000219080,0.6757,2733.1,2732.6,3.65944]
[1740000219424,0.6757,2733.1,2732.7,3.65937]
[1740000219616,0.6757,2733.1,2732.6,4.025384]
[1740000219924,0.6757,2733.1,2732.8,3.65922]
[1740000221918,0.6757,2733.1,2732.8,3.65916]
[1740000222087,0.6757,2733.1,2732.8,3.65924]
[1740000222702,0.6757,2733.1,2732.7,3.65938]
[1740000222786,0.6757,2733.1,2732.7,4.4278524]
[1740000223115,0.6757,2733.1,2732.8,3.65925]
[1740000224900,0.6757,2733.1,2732.7,0.7684724]
[1740000225099,0.6757,2733.1,2732.6,3.65943]
[1740000225100,3.65898,2733.0,2732.6,3.65943]
[1740000225482,3.65898,2733.0,2732.4,3.65977]
[1740000225820,0.6757,2733.1,2732.4,3.65977]
[1740000225821,4.33461,2733.1,2732.5,3.65963]
[1740000226020,4.33461,2733.1,2732.6,3.65951]
[1740000226321,0.6757,2733.1,2732.6,3.65951]
[1740000226511,0.6757,2733.1,2732.6,4.391378]
[1740000226887,0.6757,2733.1,2732.6,3.65945]
[1740000227090,4.33454,2733.1,2732.6,3.65945]
[1740000227921,3.65898,2733.0,2732.5,3.65964]
[1740000228224,0.6757,2733.1,2732.6,3.65949]
[1740000229425,4.33457,2733.1,2732.6,3.65949]
[1740000230218,0.6757,2733.1,2732.6,3.65949]
[1740000230495,4.33455,2733.1,2732.6,3.65949]
[1740000230997,0.6757,2733.1,2732.2,0.7949]
[1740000231310,3.65905,2733.0,2732.5,3.65958]
[1740000231528,0.6757,2732.9,2732.3,3.65984]
[1740000231697,4.33489,2732.9,2732.3,3.65984]
[1740000231897,4.33489,2732.9,2732.3,7.31969]
[1740000232099,4.33489,2732.9,2732.3,3.65984]
[1740000232310,4.33489,2732.9,2732.4,3.65975]
[1740000232819,0.6757,2732.9,2732.4,3.65975]
[1740000233025,0.6757,2732.9,2732.3,4.562824]
[1740000233353,4.33483,2732.9,2732.4,3.65977]
[1740000235118,3.65934,2732.8,2732.1,3.66012]
[1740000235317,3.65961,2732.6,2731.9,3.66038]
[1740000235521,4.33541,2732.5,2731.9,3.66038]
[1740000235739,3.65979,2732.4,2731.9,3.66038]
[1740000235946,0.6757,2732.3,2731.6,0.4026858]
[1740000236142,4.33562,2732.3,2731.6,3.66075]
[1740000236343,0.6757,2732.3,2731.5,0.7924]
[1740000236623,9.01931,2732.8,2732.1,3.66007]
[1740000236842,0.6757,2732.7,2732.1,3.66007]
[1740000237161,3.65959,2732.6,2732.1,3.66007]
[1740000237457,10.4303732,2732.6,2732.1,3.66007]
[1740000237954,0.6757,2732.7,2732.1,3.66007]
[1740000238257,3.65952,2732.6,2732.1,3.66007]
[1740000238457,3.65952,2732.6,2732.1,4.392117]
[1740000238645,3.65952,2732.6,2732.1,0.732047]
[1740000238646,3.65969,2732.5,2732.1,0.732047]
[1740000238967,4.33581,2732.2,2731.7,3.66071]
[1740000240052,0.6757,2732.2,2731.7,3.66072]
[1740000240234,0.6757,2732.2,2731.6,5.37]
[1740000240434,0.6757,2732.2,2731.8,3.66057]
[1740000241228,0.6757,2732.2,2732.0,3.6603]
[1740000241471,0.6757,2732.2,2732.0,4.392382]
[1740000241657,0.6757,2732.6,2732.0,0.732082]
[1740000241856,5.36,2732.8,2732.5,3.65965]
[1740000242040,0.6757,2732.9,2732.5,3.65965]
[1740000242624,0.6757,2732.9,2732.7,3.65934]
[1740000242849,0.6757,2732.9,2732.4,3.65973]
[1740000243235,6.7705032,2732.8,2732.2,3.65992]
[1740000243436,3.1111732,2732.8,2732.3,3.65979]
[1740000244459,0.6757,2732.9,2732.6,3.65944]
[1740000245538,0.6757,2732.9,2732.4,4.4863]
[1740000245739,0.6757,2732.9,2732.6,3.65951]
[1740000245955,3.1111732,2733.1,2732.6,3.65951]
[1740000246162,3.7868732,2733.1,2732.7,3.65925]
[1740000246459,0.6757,2733.1,2732.6,3.65942]
[1740000246829,4.33456,2733.1,2732.6,3.65942]
[1740000247224,4.33456,2733.1,2732.4,4.48632]
[1740000247225,4.33456,2733.1,2732.5,3.65964]
[1740000247431,7.99348,2733.1,2732.4,4.48632]
[1740000247667,4.33456,2733.1,2732.5,3.65953]
[1740000248567,7.4457332,2733.1,2732.5,3.65953]
[1740000248737,3.65907,2733.0,2732.5,3.65953]
[1740000248930,7.4457832,2733.1,2732.5,3.65953]
[1740000249358,7.4457832,2733.1,2732.6,3.65947]
[1740000249732,11.1047432,2733.1,2732.6,3.65947]
[1740000249934,7.4457832,2733.1,2732.6,3.65947]
[1740000250134,7.4457832,2733.1,2732.6,3.80987]
[1740000250869,0.6757,2732.7,2732.6,0.1504]
[1740000253062,4.33508,2732.7,2732.6,0.1504]
[1740000253749,4.60308,2732.7,2732.6,0.1504]
[1740000255977,9.69508,2732.7,2732.6,0.1504]
[1740000256164,11.39626969,2732.7,2732.6,0.1504]
[1740000257683,6.0357,2732.7,2732.6,0.1504]
[1740000259036,9.69508,2732.7,2732.6,0.1504]
[1740000271775,9.96308,2732.7,2732.6,0.1504]
[1740000274578,9.4148732,2732.7,2732.6,0.1504]
[1740000274799,13.0742532,2732.7,2732.6,0.1504]
[1740000274995,14.47960952,2732.7,2732.6,0.1504]
[1740000275359,10.82022952,2732.7,2732.6,0.1504]
[1740000275560,14.47960952,2732.7,2732.6,0.1504]
[1740000278592,5.36,2732.7,2732.6,0.1504]
[1740000278957,6.7702632,2733.0,2732.6,0.1504]
[1740000279162,6.7702632,2733.0,2732.6,0.9096]
[1740000279387,3.1111732,2733.0,2732.6,0.9096]
[1740000280181,3.1111732,2733.0,2732.6,4.5691]
[1740000280401,3.1111732,2733.0,2732.6,5.391964]
[1740000281497,6.7701532,2733.0,2732.6,1.732464]
[1740000281699,3.1111732,2733.0,2732.6,0.9096]
[1740000282698,6.7701932,2733.0,2732.6,0.9096]
[1740000283794,3.1111732,2733.0,2732.6,0.9096]
[1740000284301,6.7702232,2733.0,2732.6,0.9096]
[1740000286399,3.1111732,2733.0,2732.7,3.65938]
[1740000286596,3.1111732,2733.0,2732.6,4.56902]
[1740000286766,6.7701532,2733.0,2732.6,0.9096]
[1740000286966,10.4292132,2733.0,2732.6,0.9096]
[1740000287380,6.7701532,2733.0,2732.6,0.9096]
[1740000289303,3.65934,2732.8,2732.6,0.1504]
[1740000290998,3.65938,2732.7,2732.6,0.1504]
[1740000291583,6.7705532,2732.7,2732.6,0.1504]
[1740000294594,12.1305532,2732.7,2732.6,0.1504]
[1740000296207,12.8062532,2732.7,2732.6,0.1504]
[1740000296391,14.52782643,2732.7,2732.6,0.1504]
[1740000298095,8.4711732,2732.7,2732.6,0.1504]
[1740000298300,5.36,2732.7,2732.6,0.1504]
[1740000298711,9.01938,2732.7,2732.6,0.1504]
[1740000300206,5.36,2732.7,2732.6,4.59451]
[1740000300506,3.1111732,2733.2,2732.6,4.59451]
[1740000300707,4.44612175,2733.2,2732.6,0.935]
[1740000301131,8.10491175,2733.2,2732.6,0.935]
[1740000301338,3.65887,2733.1,2732.6,0.935]
[1740000302230,3.65887,2733.1,2732.6,4.59451]
[1740000303332,3.65887,2733.1,2732.6,0.935]
[1740000303530,3.65904,2733.0,2732.6,0.935]
[1740000304220,3.65893,2733.1,2732.6,4.59441]
[1740000304427,7.31789,2733.1,2732.6,4.59441]
[1740000304932,3.65925,2732.8,2732.6,0.1504]
[1740000305433,7.31858,2732.8,2732.6,0.1504]
[1740000306282,3.65938,2732.7,2732.6,0.1504]
[1740000306495,4.70236032,2732.7,2732.6,0.1504]
[1740000306818,5.37806032,2732.7,2732.6,0.1504]
[1740000307922,3.66032,2732.1,2731.5,0.8328]
[1740000308120,3.66053,2731.9,2731.5,0.8328]
[1740000308786,3.66062,2731.8,2731.3,0.8212]
[1740000308987,7.32107,2731.9,2731.3,0.8212]
[1740000309412,8.120747,2731.9,2731.3,0.8212]
[1740000310116,3.66059,2731.8,2731.3,0.8212]
[1740000310699,3.1111732,2731.8,2731.0,0.7912]
[1740000311026,3.66094,2731.6,2731.0,4.45284]
[1740000311201,4.77178732,2731.6,2731.0,4.45284]
[1740000311397,6.7726432,2731.2,2730.5,3.66223]
[1740000311597,3.1111732,2730.9,2730.3,3.66246]
[1740000311823,3.66195,2730.8,2730.2,3.66264]
[1740000312524,3.1111732,2730.9,2730.4,3.66245]
[1740000312722,3.1111732,2730.9,2730.2,3.66262]
[1740000312723,3.1111732,2730.9,2730.2,7.32525]
[1740000313032,3.1111732,2730.9,2730.2,3.66262]
[1740000313225,6.7730532,2730.9,2730.2,3.66262]
[1740000313392,6.7730532,2730.9,2730.3,3.66257]
[1740000313393,3.1111732,2730.9,2730.3,3.66257]
[1740000314403,6.7729832,2730.9,2730.2,3.66262]
[1740000314614,6.7729832,2730.9,2730.2,7.32527]
[1740000314813,6.7729832,2730.9,2730.2,3.66262]
[1740000315026,6.7729932,2730.9,2730.3,3.66251]
[1740000315214,3.1111732,2730.9,2730.3,3.66251]
[1740000315421,6.7729632,2730.9,2730.3,3.66251]
[1740000315624,3.66194,2730.8,2730.2,3.66272]
[1740000315817,3.66194,2730.8,2730.1,4.45199]
[1740000316014,3.66194,2730.8,2730.2,3.66273]
[1740000317537,4.75820552,2730.9,2730.3,3.66247]
[1740000317960,8.42009552,2730.9,2730.2,7.32538]
[1740000318167,4.19133393,2730.8,2730.2,3.66265]
[1740000318842,3.7868732,2730.6,2730.1,4.45204]
[1740000319062,7.4490832,2730.6,2730.1,0.7892]
[1740000319209,3.66235,2730.5,2729.9,3.66306]
[1740000319641,3.7868732,2730.6,2730.0,3.66299]
[1740000319914,0.268,2730.7,2730.4,3.66239]
[1740000320113,0.268,2730.7,2730.3,4.42068]
[1740000320337,0.268,2730.7,2730.3,0.7581]
[1740000321266,0.52940393,2730.8,2730.4,3.66246]
[1740000321539,3.3791732,2730.9,2730.3,0.7581]
[1740000321735,3.3791732,2730.9,2730.5,3.66233]
[1740000322526,3.3791732,2730.9,2730.3,4.4206]
[1740000322725,5.05300352,2730.9,2730.4,3.66242]
[1740000323248,8.71483352,2730.9,2730.3,4.42062]
[1740000324211,8.71483352,2730.9,2730.3,8.08314]
[1740000324544,8.71483352,2730.9,2730.3,3.66252]
[1740000324847,6.7734232,2730.6,2729.9,4.42114]
[1740000325011,0.6757,2730.4,2729.9,8.08421]
[1740000325215,0.6757,2730.4,2729.9,4.42114]
[1740000325455,3.1111732,2730.3,2729.9,3.66304]
[1740000325714,0.6757,2730.4,2730.2,3.6626]
[1740000325914,3.7868732,2730.6,2730.2,3.6626]
[1740000326113,3.7868732,2730.6,2730.0,3.6629]
[1740000326114,5.15492486,2730.6,2730.0,3.6629]
[1740000326635,5.15492486,2730.6,2730.1,3.66278]
[1740000326832,8.81714486,2730.6,2730.1,3.66278]
[1740000327038,3.66236,2730.5,2730.0,3.66299]
[1740000327241,5.15492486,2730.6,2730.1,3.66277]
[1740000328253,6.3037,2730.8,2730.4,3.66246]
[1740000329349,3.66206,2730.7,2730.2,0.8223]
[1740000329519,3.66206,2730.7,2730.2,4.485]
[1740000329719,6.3037,2730.8,2730.3,3.66251]
[1740000329951,6.3037,2730.8,2730.4,3.66245]
[1740000330147,6.3037,2730.8,2730.2,0.8223]
[1740000330148,6.0357,2730.8,2730.2,0.8223]
[1740000330366,3.1111732,2730.9,2730.7,3.66204]
[1740000330530,0.9437,2731.1,2730.7,3.66204]
[1740000330733,1.88518732,2731.1,2730.7,3.66204]
[1740000331138,1.61718732,2731.1,2730.8,3.66192]
[1740000331336,0.6757,2731.1,2730.7,4.49335]
[1740000331752,0.6757,2731.1,2730.8,3.66192]
[1740000332122,3.1111732,2731.2,2730.7,0.8313]
[1740000332324,0.06959225,2731.0,2730.8,3.66184]
[1740000332524,0.06809362,2731.1,2730.8,3.66184]
[1740000332719,0.06805728,2730.9,2730.8,3.66184]
[1740000332956,0.6757,2731.3,2730.8,3.66184]
[1740000333159,0.06805728,2730.9,2730.8,3.66184]
[1740000333366,0.6757,2731.3,2730.8,3.66184]
[1740000333543,0.06803938,2730.9,2730.8,3.66184]
[1740000333882,0.6757,2731.3,2730.8,3.66184]
[1740000334057,0.06803938,2730.9,2730.8,3.66184]
[1740000334562,0.6757,2731.3,2730.8,3.66184]
[1740000334727,0.06803938,2730.9,2730.8,3.66184]
[1740000334937,0.6757,2731.3,2730.8,3.66184]
[1740000335161,0.06803938,2730.9,2730.8,3.66184]
[1740000335377,0.6757,2731.3,2730.8,3.66184]
[1740000335545,0.06802149,2730.9,2730.8,3.66184]
[1740000335755,4.33696,2731.3,2730.8,3.66184]
[1740000335952,0.06804833,2730.9,2730.8,3.66184]
[1740000336139,3.1111732,2731.2,2730.8,3.66184]
[1740000336349,0.06804833,2730.9,2730.8,3.66184]
[1740000336860,3.1111732,2731.2,2730.7,0.8313]
[1740000337164,0.268,2731.4,2730.4,0.7514]
[1740000337165,0.6757,2730.8,2730.4,0.7514]
[1740000337459,0.0684064,2730.7,2730.3,3.66248]
[1740000337644,0.06596332,2730.7,2730.3,3.66248]
[1740000337842,4.3061064,2730.8,2730.2,6.1214]
[1740000338066,3.72810332,2730.7,2730.2,5.37]
[1740000338990,3.72810332,2730.7,2730.2,9.03265]
[1740000341166,3.72810332,2730.7,2730.3,3.66257]
[1740000341374,0.06596332,2730.7,2730.3,7.32514]
[1740000341587,0.06596332,2730.7,2730.2,5.37]
[1740000341756,3.66206,2730.7,2730.2,9.0327]
[1740000342067,0.06574193,2730.6,2730.2,9.0327]
[1740000342365,0.06574193,2730.6,2730.2,3.6627]
[1740000345173,3.72796193,2730.6,2730.1,3.66285]
[1740000345478,0.06574193,2730.6,2730.5,3.66233]
[1740000345779,6.0041,2731.0,2730.5,3.66233]
[1740000346076,9.66577,2731.0,2730.5,3.66233]
[1740000346466,6.0041,2731.0,2730.5,3.66233]
[1740000346655,6.0041,2731.0,2730.6,3.66214]
[1740000346841,0.06574512,2730.9,2730.8,0.0992]
[1740000358315,0.06574512,2730.9,2730.8,4.927664]
[1740000358606,0.6441,2731.6,2730.8,4.55153]
[1740000358893,0.6441,2731.6,2730.8,0.8896]
[1740000359190,0.06621606,2731.5,2731.1,3.6615]
[1740000359481,3.72720606,2731.5,2730.8,0.8896]
[1740000359698,4.3055,2731.2,2730.8,0.0992]
[1740000360051,0.6441,2731.2,2730.8,0.0992]
[1740000360257,0.6441,2731.2,2730.8,3.76106]
[1740000360463,0.6441,2731.2,2730.8,0.0992]
[1740000361652,4.3055,2731.2,2730.8,0.0992]
[1740000362283,0.06640904,2731.1,2730.8,0.0992]
[1740000362489,3.72799904,2731.1,2730.8,0.0992]
[1740000363905,0.06640904,2731.1,2730.8,0.0992]
[1740000364273,0.06640904,2731.1,2731.0,3.66166]
[1740000364475,9.66518,2731.5,2731.0,3.66166]
[1740000364914,9.66518,2731.5,2730.8,3.76105]
[1740000364915,0.06657149,2731.4,2730.8,3.76105]
[1740000365406,0.06657149,2731.4,2730.9,3.6617]
[1740000365562,0.06657149,2731.4,2731.0,3.66159]
[1740000365992,3.72775149,2731.4,2730.9,3.66178]
[1740000366162,0.06657149,2731.4,2730.9,3.66178]
[1740000366791,3.72773149,2731.4,2730.9,3.66178]
[1740000366978,0.06657149,2731.4,2731.0,3.66166]
[1740000367300,0.06657149,2731.4,2731.0,4.48786]
[1740000369295,3.72773149,2731.4,2731.0,0.8263]
[1740000369496,3.66126,2731.3,2730.8,3.76105]
[1740000369704,3.66126,2731.3,2730.8,4.217065]
[1740000369913,0.06416291,2731.2,2730.8,4.217065]
[1740000370225,3.66113,2731.4,2730.9,3.66176]
[1740000370420,0.06413132,2731.1,2730.9,3.66176]
[1740000370593,3.66113,2731.4,2730.9,3.66176]
[1740000370793,0.06409973,2731.0,2730.9,4.5295525]
[1740000370995,3.66113,2731.4,2730.9,4.5295525]
[1740000371204,0.06409973,2731.0,2730.9,4.5295525]
[1740000371413,3.66113,2731.4,2730.9,4.5295525]
[1740000371724,0.06401467,2731.0,2730.9,4.5295525]
[1740000371913,4.30521,2731.5,2730.9,4.5295025]
[1740000372116,0.06401467,2731.0,2730.9,7.3234]
[1740000372420,4.30521,2731.5,2731.0,3.66165]
[1740000372586,3.66114,2731.4,2730.9,3.66169]
[1740000372912,3.66114,2731.4,2730.9,7.32342]
[1740000373222,0.06412905,2731.3,2730.9,7.32342]
[1740000373422,0.06412905,2731.3,2730.9,3.66169]
[1740000373779,0.06412905,2731.3,2730.9,7.32341]
[1740000373985,0.06412905,2731.3,2731.0,3.66156]
[1740000374485,0.06409093,2731.2,2731.0,3.66156]
[1740000374692,3.66113,2731.4,2731.0,3.66156]
[1740000374890,0.06412251,2731.3,2731.0,3.66156]
[1740000375510,0.06412251,2731.3,2730.9,4.5295525]
[1740000375717,0.06412251,2731.3,2730.9,3.66178]
[1740000376020,0.6441,2731.2,2730.8,0.0992]
[1740000376519,0.0640528,2731.1,2730.8,0.0992]
[1740000376725,3.7256028,2731.1,2730.8,0.0992]
[1740000377307,0.0640528,2731.1,2730.8,0.0992]
[1740000377919,3.7256828,2731.1,2730.8,0.0992]
[1740000378517,4.8399184,2731.1,2730.8,0.0992]
[1740000380302,3.66166,2731.0,2730.8,0.0992]
[1740000380507,0.06398962,2730.9,2730.8,0.0992]
[1740000385228,3.66155,2731.1,2730.8,0.0992]
[1740000385448,0.06398962,2730.9,2730.8,0.0992]
[1740000385618,3.66155,2731.1,2730.8,0.0992]
[1740000385821,0.06379983,2730.9,2730.8,0.0992]
[1740000386014,7.32317,2731.1,2730.8,0.0992]
[1740000386209,0.06379983,2730.9,2730.8,0.0992]
[1740000386415,7.32317,2731.1,2730.8,0.0992]
[1740000386614,0.06379983,2730.9,2730.8,0.0992]
[1740000386858,3.66155,2731.1,2730.8,0.0992]
[1740000387047,0.06379983,2730.9,2730.8,0.0992]
[1740000387222,3.66155,2731.1,2730.8,0.0992]
[1740000387415,0.06379983,2730.9,2730.8,0.0992]
[1740000387613,3.66155,2731.1,2730.8,0.0992]
[1740000387814,0.06379983,2730.9,2730.8,0.0992]
[1740000388021,3.66155,2731.1,2730.8,0.0992]
[1740000388225,0.06379983,2730.9,2730.8,0.0992]
[1740000388435,7.32317,2731.1,2730.8,0.0992]
[1740000388727,5.30539432,2731.1,2730.8,0.0992]
[1740000388931,0.06383142,2731.0,2730.9,0.7514]
[1740000389125,5.36,2731.3,2731.2,3.66139]
[1740000389454,0.05473248,2731.3,2731.2,4.41279]
[1740000389655,0.05473248,2731.3,2731.2,5.22022]
[1740000389838,3.7552732,2731.9,2731.2,1.55883]
[1740000390048,0.6441,2731.9,2731.5,3.66098]
[1740000390419,0.6441,2731.9,2731.4,3.66107]
[1740000390624,5.36,2732.0,2731.2,0.7514]
[1740000390975,3.65976,2732.5,2732.0,4.41162]
[1740000390976,0.6441,2732.5,2732.0,4.41162]
[1740000391120,0.6441,2732.5,2732.0,0.7514]
[1740000391121,1.41236632,2732.5,2732.0,0.7514]
[1740000391319,3.16293922,2732.4,2732.0,4.41167]
[1740000391542,3.6604,2732.0,2731.3,4.41258]
[1740000391732,6.7718632,2731.8,2731.3,0.7514]
[1740000391957,0.69591179,2731.7,2731.1,0.7514]
[1740000392257,0.69591179,2731.7,2731.2,3.6613]
[1740000392942,0.69591179,2731.7,2731.2,7.32259]
[1740000393453,0.69591179,2731.7,2731.3,3.66119]
[1740000393763,0.05181179,2731.7,2731.3,3.66119]
[1740000393957,3.1111732,2731.8,2731.3,3.66119]
[1740000394175,0.05181179,2731.7,2731.3,3.66119]
[1740000394467,3.1111732,2731.8,2731.3,3.66119]
[1740000394757,0.05181179,2731.7,2731.3,3.66119]
[1740000394962,3.1111732,2731.8,2731.3,3.66119]
[1740000395169,0.05181179,2731.7,2731.3,3.66119]
[1740000395350,6.7717932,2731.8,2731.3,3.66119]
[1740000395556,0.05181179,2731.7,2731.3,3.66119]
[1740000395739,6.7717932,2731.8,2731.3,3.66119]
[1740000395940,0.05181179,2731.7,2731.3,3.66119]
[1740000396640,0.05181179,2731.7,2731.4,0.8075]
[1740000398557,0.04987492,2731.6,2731.4,0.8075]
[1740000398866,0.04987492,2731.6,2731.5,3.66099]
[1740000399076,0.04987492,2731.6,2731.4,0.8075]
[1740000403782,0.04987492,2731.6,2731.4,4.4686]
[1740000404156,0.04987492,2731.6,2731.4,5.281578]
[1740000404311,0.04987492,2731.6,2731.4,1.620478]
[1740000407315,0.04987492,2731.6,2731.4,0.8075]
[1740000407528,0.04987492,2731.6,2731.3,3.66124]
[1740000410713,0.04987492,2731.6,2731.4,3.6611]
[1740000419387,0.04987492,2731.6,2731.4,3.66102]
[1740000420320,0.04987492,2731.6,2731.3,3.66124]
[1740000420723,0.04987492,2731.6,2731.3,3.66114]
[1740000421020,0.04987492,2731.6,2731.3,4.472514]
[1740000421836,0.69397492,2731.6,2731.0,0.7888]
[1740000422048,4.30544,2731.3,2730.8,0.0992]
[1740000422189,3.66154,2731.1,2730.8,0.0992]
[1740000422389,0.0456137,2731.0,2730.8,0.0992]
[1740000423146,0.6441,2730.9,2730.8,0.0992]
[1740000423445,0.68968211,2730.9,2730.8,0.0992]
[1740000423805,0.04558211,2730.9,2730.8,0.0992]
[1740000424002,0.6441,2731.1,2730.8,0.0992]
[1740000424242,0.04534483,2731.0,2730.8,0.0992]
[1740000425117,3.70706483,2731.0,2730.8,0.0992]
[1740000425637,3.66179,2730.9,2730.8,0.0992]
[1740000426019,3.70710324,2730.9,2730.8,0.0992]
[1740000426337,0.04531324,2730.9,2730.8,0.0992]
[1740000426932,3.70710324,2730.9,2730.8,0.0992]
[1740000427641,0.04531324,2730.9,2730.8,0.0992]
[1740000429825,3.70710324,2730.9,2730.8,0.0992]
[1740000430450,4.50839056,2730.9,2730.8,0.0992]